lending/lending_fUSD_20250131
["ID","MTS","AMOUNT","RATE_DAILY","PERIOD"]
[351026285,1738299048601,-4297.89,0.00019315,3]
[351026286,1738299048615,-151.0,0.00019315,2]
[351026287,1738299048626,-220.984685,0.00019315,2]
[351026288,1738299048636,-556.83,0.00019315,3]
[351026289,1738299048646,-936.62,0.00019315,3]
[351026290,1738299048656,-500.0,0.00019315,3]
[351026291,1738299048666,-500.0,0.00019315,3]
[351026292,1738299048676,-796.04,0.00019315,3]
[351026293,1738299048686,-3552.42,0.00019315,3]
[351026294,1738299048696,-500.0,0.00019315,3]
[351026295,1738299048706,-1236.16,0.00019315,3]
[351026296,1738299048715,-1953.65,0.00019315,3]
[351026297,1738299048727,-1618.43,0.00019315,3]
[351026298,1738299048736,-151.0,0.00019315,2]
[351026299,1738299048746,-545.53439888,0.00019315,3]
[351026300,1738299048756,-500.0,0.00019315,3]
[351026301,1738299048765,-2720.7,0.00019315,3]
[351026302,1738299048775,-2074.78,0.00019315,3]
[351026303,1738299048785,-5835.75,0.00019315,3]
[351026304,1738299048795,-985.44,0.00019315,3]
[351026305,1738299048805,-500.0,0.00019315,3]
[351026306,1738299048815,-500.0,0.00019315,3]
[351026307,1738299048826,-4259.32,0.00019315,3]
[351026308,1738299048836,-2034.26,0.00019315,3]
[351026309,1738299048846,-151.0,0.00019315,2]
[351026310,1738299048856,-7176.0,0.00019315,3]
[351026311,1738299048866,-151.0,0.00019315,2]
[351026312,1738299048876,-11646.11,0.00019315,3]
[351026313,1738299048886,-500.0,0.00019315,3]
[351026314,1738299048895,-665.38,0.00019315,3]
[351026315,1738299048905,-500.0,0.00019315,3]
[351026316,1738299048914,-500.0,0.00019315,3]
[351026317,1738299048924,-1895.83,0.00019315,3]
[351026318,1738299048933,-6077.74,0.00019315,3]
[351026319,1738299048943,-500.0,0.00019315,3]
[351026320,1738299048953,-500.0,0.00019315,3]
[351026321,1738299048963,-500.0,0.00019315,3]
[351026322,1738299048972,-2659.18,0.00019315,3]
[351026323,1738299048982,-5998.91,0.00019315,3]
[351026324,1738299048991,-1856.54,0.00019315,3]
[351026325,1738299049001,-3761.46,0.00019315,3]
[351026326,1738299049011,-3264.01,0.00019315,3]
[351026327,1738299049020,-4160.05,0.00019315,3]
[351026328,1738299049030,-872.28,0.00019315,3]
[351026329,1738299049039,-791.68,0.00019315,3]
[351026330,1738299049048,-500.0,0.00019315,3]
[351026331,1738299049058,-2006.72,0.00019315,3]
[351026332,1738299049068,-520.13,0.00019315,3]
[351026333,1738299049077,-511.99,0.00019315,3]
[351026334,1738299049087,-294.91533,0.00019315,2]
[351026335,1738299049096,-5557.5,0.00019315,3]
[351026336,1738299049106,-553.15,0.00019315,3]
[351026337,1738299049116,-1673.04,0.00019315,3]
[351026338,1738299049126,-8189.28,0.00019315,3]
[351026339,1738299049136,-1054.76,0.00019315,2]
[351026340,1738299049146,-500.0,0.00019315,3]
[351026341,1738299049155,-3133.62,0.00019315,3]
[351026342,1738299049165,-2170.17,0.00019315,3]
[351026343,1738299049175,-2244.01,0.00019315,3]
[351026344,1738299049185,-1022.97,0.00019315,3]
[351026345,1738299049195,-1188.31,0.00019315,3]
[351026346,1738299049205,-500.0,0.00019315,3]
[351026347,1738299049215,-9625.22,0.00019315,3]
[351026348,1738299049226,-801.21,0.00019315,3]
[351026349,1738299049240,-750.68,0.00019315,3]
[351026350,1738299049400,-4251.21,0.00019315,3]
[351026351,1738299049411,-640.51541924,0.00019315,3]
[351026352,1738299049421,-4221.66,0.00019315,3]
[351026353,1738299049430,-803.41,0.00019315,3]
[351026354,1738299049440,-500.0,0.00019315,3]
[351026355,1738299049450,-4997.48,0.00019315,3]
[351026356,1738299049459,-500.0,0.00019315,3]
[351026357,1738299049468,-3444.35,0.00019315,3]
[351026358,1738299049479,-500.0,0.00019315,3]
[351026359,1738299049488,-2011.22,0.00019315,3]
[351026360,1738299049498,-500.0,0.00019315,3]
[351026361,1738299049507,-500.0,0.00019315,3]
[351026362,1738299049517,-520.59570586,0.00019315,3]
[351026363,1738299049526,-2761.89,0.00019315,3]
[351026364,1738299049536,-500.0,0.00019315,3]
[351026365,1738299049545,-1916.93,0.00019315,3]
[351026366,1738299049556,-7271.29,0.00019315,3]
[351026367,1738299049567,-1555.61,0.00019315,3]
[351026368,1738299049576,-500.0,0.00019315,3]
[351026369,1738299049585,-500.0,0.00019315,3]
[351026370,1738299049595,-1883.79,0.00019315,3]
[351026371,1738299049605,-986.83,0.00019315,3]
[351026372,1738299049615,-3326.8,0.00019315,3]
[351026373,1738299049625,-1054.93,0.00019315,3]
[351026374,1738299049635,-151.0,0.00019315,2]
[351026375,1738299049645,-3881.56,0.00019315,3]
[351026376,1738299049655,-500.0,0.00019315,3]
[351026377,1738299049665,-151.0,0.00019315,2]
[351026378,1738299049673,-500.0,0.00019315,3]
[351026379,1738299049682,-1045.33,0.00019315,3]
[351026380,1738299049692,-1902.38,0.00019315,3]
[351026381,1738299049701,-500.0,0.00019315,3]
[351026382,1738299049710,-3681.65,0.00019315,3]
[351026383,1738299049719,-1352.77,0.00019315,3]
[351026384,1738299049728,-500.0,0.00019315,3]
[351026385,1738299049737,-545.82,0.00019315,3]
[351026386,1738299049746,-2487.83,0.00019315,3]
[351026387,1738299049755,-500.0,0.00019315,3]
[351026388,1738299049765,-500.0,0.00019315,3]
[351026389,1738299049773,-626.2,0.00019315,3]
[351026390,1738299049783,-510.04104244,0.00019315,3]
[351026391,1738299049791,-6399.13,0.00019315,3]
[351026392,1738299049801,-2398.15,0.00019315,3]
[351026393,1738299049811,-500.0,0.00019315,3]
[351026394,1738299049822,-500.0,0.00019315,3]
[351026395,1738299049831,-756.54,0.00019315,3]
[351026396,1738299049841,-500.0,0.00019315,3]
[351026397,1738299049850,-534.46,0.00019315,3]
[351026398,1738299049859,-184.926739,0.00019315,2]
[351026399,1738299049869,-2864.49,0.00019315,3]
[351026400,1738299049878,-1600.72,0.00019315,3]
[351026401,1738299049888,-2533.4,0.00019315,3]
[351026402,1738299049897,-508.11125616,0.00019315,3]
[351026403,1738299049907,-1409.05,0.00019315,3]
[351026404,1738299049917,-500.0,0.00019315,3]
[351026405,1738299049927,-1389.68,0.00019315,3]
[351026406,1738299049936,-705.15,0.00019315,3]
[351026407,1738299049947,-500.0,0.00019315,3]
[351026408,1738299049957,-1057.09,0.00019315,3]
[351026409,1738299049966,-1598.55,0.00019315,3]
[351026410,1738299049976,-1481.14,0.00019315,3]
[351026411,1738299049984,-1346.59,0.00019315,3]
[351026412,1738299049994,-500.0,0.00019315,3]
[351026413,1738299050003,-592.78,0.00019315,3]
[351026414,1738299050012,-7368.92,0.00019315,3]
[351026415,1738299050021,-500.0,0.00019315,3]
[351026416,1738299050030,-474.49822282,0.00019315,3]
[351026417,1738299050039,-943.62,0.00019315,3]
[351026418,1738299050048,-2272.07,0.00019315,3]
[351026419,1738299050057,-4736.21,0.00019315,3]
[351026420,1738299050066,-500.0,0.00019315,3]
[351026421,1738299050075,-500.0,0.00019315,3]
[351026422,1738299050084,-1442.22,0.00019315,3]
[351026423,1738299050093,-714.12,0.00019315,3]
[351026424,1738299050102,-500.62158008,0.00019315,3]
[351026425,1738299050111,-500.0,0.00019315,2]
[351026426,1738299050124,-177.01,0.0001933,2]
[351026427,1738299050139,-500.0,0.00019343,2]
[351026428,1738299050149,-168.66754734,0.00019352,2]
[351026429,1738299050159,-151.0,0.00019352,2]
[351026430,1738299050168,-2944.54037404,0.00019352,2]
[351026431,1738299050178,-150.0,0.00019353,2]
[351026432,1738299050187,-150.0,0.00019356,2]
[351026433,1738299050196,-500.0,0.00019361,2]
[351026434,1738299050205,-500.0,0.0001937,2]
[351026435,1738299050215,-500.0,0.00019373,2]
[351026436,1738299050224,-501.18812427,0.00019373,2]
[351026437,1738299050234,-593.01277253,0.00019373,2]
[351026438,1738299050244,-151.0,0.00019389,2]
[351026439,1738299050254,-150.0,0.00019396,2]
[351026440,1738299050265,-150.0,0.00019396,2]
[351026441,1738299050275,-500.0,0.00019398,2]
[351026442,1738299050285,-152.0,0.00019404,5]
[351026443,1738299050295,-159.98619382,0.00019407,2]
[351026444,1738299050305,-150.0,0.00019407,2]
[351026445,1738299050315,-150.0,0.00019409,2]
[351026446,1738299050325,-5000.0,0.00019424,4]
[351026447,1738299050334,-500.0,0.00019425,2]
[351026448,1738299050345,-180.585042,0.00019436,2]
[351026449,1738299050354,-449.686419,0.00019436,2]
[351026450,1738299050368,-161.730746,0.00019436,2]
[351026451,1738299050377,-1575.341458,0.00019439,2]
[351026452,1738299050386,-2333.8952305,0.00019439,2]
[351026453,1738299050395,-1169.6202862,0.00019439,2]
[351026454,1738299050404,-2944.54037404,0.00019443,2]
[351026455,1738299050414,-150.0,0.00019447,2]
[351026456,1738299050423,-868.58770371,0.00019447,3]
[351026457,1738299050432,-500.0,0.00019451,3]
[351026458,1738299050441,-500.0,0.00019451,3]
[351026459,1738299050450,-266.43243527,0.00019451,3]
[351026460,1738299050459,-300.0,0.00019451,2]
[351026461,1738299050469,-150.0,0.00019452,2]
[351026462,1738299050478,-2674.725176,0.00019452,3]
[351026463,1738299050487,-3784.297837,0.00019452,3]
[351026464,1738299050496,-152.930379,0.00019452,3]
[351026465,1738299050506,-500.0,0.00019452,3]
[351026466,1738299050517,-155.129208,0.00019452,3]
[351026467,1738299050527,-500.0,0.00019452,3]
[351026468,1738299050538,-500.0,0.00019452,3]
[351026469,1738299050547,-500.0,0.00019452,3]
[351026470,1738299050556,-500.0,0.00019452,3]
[351026471,1738299050567,-628.68,0.00019452,3]
[351026472,1738299050577,-500.0,0.00019452,3]
[351026473,1738299050587,-500.0,0.00019452,3]
[351026474,1738299050598,-500.0,0.00019452,3]
[351026475,1738299050607,-620.84,0.00019452,3]
[351026476,1738299050616,-500.0,0.00019452,3]
[351026477,1738299050626,-430.21378877,0.00019452,3]
[351026478,1738299050635,-781.45,0.00019452,3]
[351026479,1738299050645,-500.0,0.00019452,3]
[351026480,1738299050654,-674.98,0.00019452,3]
[351026481,1738299050664,-500.0,0.00019452,3]
[351026482,1738299050673,-500.0,0.00019452,3]
[351026483,1738299050682,-500.0,0.00019452,3]
[351026484,1738299050692,-836.77,0.00019452,3]
[351026485,1738299050701,-796.11,0.00019452,3]
[351026486,1738299050710,-500.0,0.00019452,3]
[351026487,1738299050719,-653.86,0.00019452,3]
[351026488,1738299050729,-500.0,0.00019452,3]
[351026489,1738299050738,-541.96,0.00019452,3]
[351026490,1738299050747,-852.06,0.00019452,3]
[351026491,1738299050756,-500.0,0.00019452,3]
[351026492,1738299050766,-550.78,0.00019452,3]
[351026493,1738299050776,-819.44,0.00019452,3]
[351026494,1738299050785,-500.0,0.00019452,3]
[351026495,1738299050795,-869.85,0.00019452,3]
[351026496,1738299050804,-672.39,0.00019452,3]
[351026497,1738299050813,-339.45701812,0.00019452,3]
[351026498,1738299050822,-644.45,0.00019452,3]
[351026499,1738299050831,-500.0,0.00019452,3]
[351026500,1738299050841,-500.0,0.00019452,3]
[351026501,1738299050850,-500.0,0.00019452,3]
[351026502,1738299050859,-500.0,0.00019452,3]
[351026503,1738299050868,-500.0,0.00019452,3]
[351026504,1738299050878,-500.0,0.00019452,3]
[351026505,1738299050887,-500.0,0.00019452,3]
[351026506,1738299050896,-500.0,0.00019452,3]
[351026507,1738299050906,-500.0,0.00019452,3]
[351026508,1738299050915,-500.0,0.00019452,3]
[351026509,1738299050924,-500.0,0.00019452,3]
[351026510,1738299050934,-187.81665664,0.00019452,3]
[351026511,1738299050943,-877.19,0.00019452,3]
[351026512,1738299050952,-710.87,0.00019452,3]
[351026513,1738299050961,-159.57352962,0.00019452,3]
[351026514,1738299050972,-500.0,0.00019452,3]
[351026515,1738299050981,-500.0,0.00019452,3]
[351026516,1738299050991,-949.5,0.00019452,3]
[351026517,1738299051000,-500.0,0.00019452,3]
[351026518,1738299051009,-500.0,0.00019452,3]
[351026519,1738299051019,-500.0,0.00019452,3]
[351026520,1738299051028,-956.22,0.00019452,3]
[351026521,1738299051038,-833.85,0.00019452,3]
[351026522,1738299051052,-500.0,0.00019452,3]
[351026523,1738299051065,-744.96,0.00019452,3]
[351026524,1738299051074,-500.0,0.00019452,3]
[351026525,1738299051083,-500.0,0.00019452,3]
[351026526,1738299051092,-834.81,0.00019452,3]
[351026527,1738299051101,-500.0,0.00019452,3]
[351026528,1738299051112,-500.0,0.00019452,3]
[351026529,1738299051128,-500.0,0.00019452,3]
[351026530,1738299051137,-500.0,0.00019452,3]
[351026531,1738299051148,-762.69,0.00019452,3]
[351026532,1738299051160,-500.0,0.00019452,3]
[351026533,1738299051169,-500.0,0.00019452,3]
[351026534,1738299051180,-857.86,0.00019452,3]
[351026535,1738299051190,-720.28,0.00019452,3]
[351026536,1738299051201,-861.44,0.00019452,3]
[351026537,1738299051210,-500.0,0.00019452,3]
[351026538,1738299051219,-500.0,0.00019452,3]
[351026539,1738299051229,-512.74608422,0.00019452,3]
[351026540,1738299051238,-794.46,0.00019452,3]
[351026541,1738299051248,-500.0,0.00019452,3]
[351026542,1738299051257,-500.0,0.00019452,3]
[351026543,1738299051266,-836.6,0.00019452,3]
[351026544,1738299051275,-1056.05,0.00019452,3]
[351026545,1738299051284,-500.0,0.00019452,3]
[351026546,1738299051293,-500.0,0.00019452,3]
[351026547,1738299051302,-500.0,0.00019452,3]
[351026548,1738299051311,-1975.72,0.00019452,3]
[351026549,1738299051321,-550.41,0.00019452,3]
[351026550,1738299051330,-646.04,0.00019452,3]
[351026551,1738299051339,-1374.92,0.00019452,3]
[351026552,1738299051350,-500.0,0.00019452,3]
[351026553,1738299051360,-1562.23,0.00019452,3]
[351026554,1738299051369,-582.75,0.00019452,3]
[351026555,1738299051379,-500.0,0.00019452,3]
[351026556,1738299051389,-1699.24,0.00019452,3]
[351026557,1738299051399,-1143.68,0.00019452,3]
[351026558,1738299051408,-714.3,0.00019452,3]
[351026559,1738299051417,-500.0,0.00019452,3]
[351026560,1738299051427,-1091.98,0.00019452,3]
[351026561,1738299051438,-500.0,0.00019452,3]
[351026562,1738299051447,-500.0,0.00019452,3]
[351026563,1738299051456,-746.89,0.00019452,3]
[351026564,1738299051466,-761.7,0.00019452,3]
[351026565,1738299051475,-500.0,0.00019452,3]
[351026566,1738299051485,-1544.26,0.00019452,3]
[351026567,1738299051496,-500.0,0.00019452,3]
[351026568,1738299051505,-840.64,0.00019452,3]
[351026569,1738299051515,-500.0,0.00019452,3]
[351026570,1738299051525,-1030.44,0.00019452,3]
[351026571,1738299051534,-500.0,0.00019452,3]
[351026572,1738299051543,-500.0,0.00019452,3]
[351026573,1738299051553,-500.0,0.00019452,3]
[351026574,1738299051562,-1827.84,0.00019452,3]
[351026575,1738299051571,-500.0,0.00019452,3]
[351026576,1738299051581,-500.0,0.00019452,3]
[351026577,1738299051590,-500.0,0.00019452,3]
[351026578,1738299051600,-853.78,0.00019452,3]
[351026579,1738299051609,-760.69,0.00019452,3]
[351026580,1738299051618,-736.44,0.00019452,3]
[351026581,1738299051628,-790.88,0.00019452,3]
[351026582,1738299051638,-560.56,0.00019452,3]
[351026583,1738299051647,-679.16,0.00019452,3]
[351026584,1738299051657,-686.18,0.00019452,3]
[351026585,1738299051666,-500.0,0.00019452,3]
[351026586,1738299051676,-500.0,0.00019452,3]
[351026587,1738299051685,-809.07,0.00019452,3]
[351026588,1738299051695,-500.0,0.00019452,3]
[351026589,1738299051705,-1169.86,0.00019452,3]
[351026590,1738299051714,-1310.16,0.00019452,3]
[351026591,1738299051724,-500.0,0.00019452,3]
[351026592,1738299051734,-670.18,0.00019452,3]
[351026593,1738299051743,-761.41,0.00019452,3]
[351026594,1738299051753,-522.35,0.00019452,3]
[351026595,1738299051762,-781.67,0.00019452,3]
[351026596,1738299051771,-738.64,0.00019452,3]
[351026597,1738299051781,-756.77,0.00019452,3]
[351026598,1738299051790,-1234.76,0.00019452,3]
[351026599,1738299051800,-665.57,0.00019452,3]
[351026600,1738299051811,-500.0,0.00019452,3]
[351026601,1738299051820,-1196.7,0.00019452,3]
[351026602,1738299051830,-500.0,0.00019452,3]
[351026603,1738299051839,-612.03,0.00019452,3]
[351026604,1738299051849,-500.0,0.00019452,3]
[351026605,1738299051858,-500.0,0.00019452,3]
[351026606,1738299051868,-1061.66,0.00019452,3]
[351026607,1738299051877,-500.0,0.00019452,3]
[351026608,1738299051887,-1262.21,0.00019452,3]
[351026609,1738299051896,-500.0,0.00019452,3]
[351026610,1738299051906,-1334.46,0.00019452,3]
[351026611,1738299051915,-591.47,0.00019452,3]
[351026612,1738299051925,-974.79,0.00019452,3]
[351026613,1738299051935,-500.0,0.00019452,3]
[351026614,1738299051945,-796.98,0.00019452,3]
[351026615,1738299051955,-500.0,0.00019452,3]
[351026616,1738299051964,-1412.16,0.00019452,3]
[351026617,1738299051975,-500.0,0.00019452,3]
[351026618,1738299051985,-848.62,0.00019452,3]
[351026619,1738299051995,-500.0,0.00019452,3]
[351026620,1738299052005,-500.0,0.00019452,3]
[351026621,1738299052015,-500.0,0.00019452,3]
[351026622,1738299052025,-502.18,0.00019452,3]
[351026623,1738299052034,-615.52,0.00019452,3]
[351026624,1738299052044,-726.49,0.00019452,3]
[351026625,1738299052053,-542.57,0.00019452,3]
[351026626,1738299052063,-1577.69,0.00019452,3]
[351026627,1738299052073,-667.3,0.00019452,3]
[351026628,1738299052083,-665.76,0.00019452,3]
[351026629,1738299052092,-811.49,0.00019452,3]
[351026630,1738299052102,-1699.26,0.00019452,3]
[351026631,1738299052112,-500.0,0.00019452,3]
[351026632,1738299052122,-500.0,0.00019452,3]
[351026633,1738299052132,-1904.8,0.00019452,3]
[351026634,1738299052142,-700.12,0.00019452,3]
[351026635,1738299052151,-1111.69,0.00019452,3]
[351026636,1738299052161,-500.0,0.00019452,3]
[351026637,1738299052171,-957.93,0.00019452,3]
[351026638,1738299052181,-809.7,0.00019452,3]
[351026639,1738299052191,-679.22,0.00019452,3]
[351026640,1738299052201,-1708.8,0.00019452,3]
[351026641,1738299052211,-726.57,0.00019452,3]
[351026642,1738299052221,-500.0,0.00019452,3]
[351026643,1738299052232,-668.58,0.00019452,3]
[351026644,1738299052243,-500.0,0.00019452,3]
[351026645,1738299052252,-1321.06,0.00019452,3]
[351026646,1738299052262,-1409.58,0.00019452,3]
[351026647,1738299052272,-500.0,0.00019452,3]
[351026648,1738299052282,-1167.26,0.00019452,3]
[351026649,1738299052292,-500.0,0.00019452,3]
[351026650,1738299052302,-500.0,0.00019452,3]
[351026651,1738299052312,-829.24,0.00019452,3]
[351026652,1738299052322,-500.0,0.00019452,3]
[351026653,1738299052331,-500.0,0.00019452,3]
[351026654,1738299052342,-500.0,0.00019452,3]
[351026655,1738299052353,-500.0,0.00019452,3]
[351026656,1738299052367,-1072.57,0.00019452,3]
[351026657,1738299052377,-527.66141984,0.00019452,3]
[351026658,1738299052387,-848.6,0.00019452,3]
[351026659,1738299052398,-533.65,0.00019452,3]
[351026660,1738299052413,-989.0,0.00019452,3]
[351026661,1738299052424,-938.63,0.00019452,3]
[351026662,1738299052438,-151.0,0.00019452,2]
[351026663,1738299052448,-659.57,0.00019452,3]
[351026664,1738299052459,-1591.83,0.00019452,3]
[351026665,1738299052469,-1045.16,0.00019452,3]
[351026666,1738299052481,-939.22,0.00019452,3]
[351026667,1738299052491,-1562.49,0.00019452,3]
[351026668,1738299052502,-959.01,0.00019452,3]
[351026669,1738299052513,-500.0,0.00019452,3]
[351026670,1738299052523,-500.0,0.00019452,3]
[351026671,1738299052535,-500.0,0.00019452,3]
[351026672,1738299052545,-804.57,0.00019452,3]
[351026673,1738299052555,-2005.53,0.00019452,3]
[351026674,1738299052565,-2222.06,0.00019452,3]
[351026675,1738299052576,-500.0,0.00019452,3]
[351026676,1738299052586,-500.0,0.00019452,3]
[351026677,1738299052596,-1353.58,0.00019452,3]
[351026678,1738299052607,-536.88,0.00019452,3]
[351026679,1738299052617,-500.0,0.00019452,3]
[351026680,1738299052628,-940.85,0.00019452,3]
[351026681,1738299052639,-1989.46,0.00019452,3]
[351026682,1738299052649,-500.0,0.00019452,3]
[351026683,1738299052660,-1867.28,0.00019452,3]
[351026684,1738299052672,-1356.74,0.00019452,3]
[351026685,1738299052682,-573.65,0.00019452,3]
[351026686,1738299052693,-500.0,0.00019452,3]
[351026687,1738299052703,-502.05,0.00019452,3]
[351026688,1738299052714,-511.06832147,0.00019452,3]
[351026689,1738299052725,-1527.15,0.00019452,3]
[351026690,1738299052735,-1676.52,0.00019452,3]
[351026691,1738299052746,-500.0,0.00019452,3]
[351026692,1738299052756,-500.0,0.00019452,3]
[351026693,1738299052766,-500.0,0.00019452,3]
[351026694,1738299052777,-500.0,0.00019452,3]
[351026695,1738299052788,-500.0,0.00019452,3]
[351026696,1738299052799,-737.88,0.00019452,3]
[351026697,1738299052810,-500.0,0.00019452,3]
[351026698,1738299052820,-226.79861655,0.00019452,3]
[351026699,1738299052830,-151.0,0.00019452,2]
[351026700,1738299052843,-500.0,0.00019452,3]
[351026701,1738299052855,-1684.23,0.00019452,3]
[351026702,1738299052865,-1222.55,0.00019452,3]
[351026703,1738299052876,-730.53,0.00019452,3]
[351026704,1738299052886,-518.03,0.00019452,3]
[351026705,1738299052899,-500.0,0.00019452,3]
[351026706,1738299052914,-692.99,0.00019452,3]
[351026707,1738299052924,-500.0,0.00019452,3]
[351026708,1738299052936,-1142.64,0.00019452,3]
[351026709,1738299052947,-633.75,0.00019452,3]
[351026710,1738299052958,-635.47328765,0.00019452,3]
[351026711,1738299052969,-656.74,0.00019452,3]
[351026712,1738299052980,-405.70803933,0.00019452,3]
[351026713,1738299052990,-2459.86,0.00019452,3]
[351026714,1738299053001,-647.5,0.00019452,3]
[351026715,1738299053011,-500.0,0.00019452,3]
[351026716,1738299053022,-500.0,0.00019452,3]
[351026717,1738299053032,-928.97,0.00019452,3]
[351026718,1738299053043,-1453.39,0.00019452,3]
[351026719,1738299053053,-892.44,0.00019452,3]
[351026720,1738299053064,-3385.53,0.00019452,3]
[351026721,1738299053074,-500.0,0.00019452,3]
[351026722,1738299053085,-1458.17,0.00019452,3]
[351026723,1738299053095,-372.66297487,0.00019452,3]
[351026724,1738299053106,-500.0,0.00019452,3]
[351026725,1738299053117,-500.0,0.00019452,3]
[351026726,1738299053127,-500.0,0.00019452,3]
[351026727,1738299053138,-1523.01,0.00019452,3]
[351026728,1738299053149,-3968.96,0.00019452,3]
[351026729,1738299053159,-500.0,0.00019452,3]
[351026730,1738299053169,-694.17,0.00019452,3]
[351026731,1738299053180,-1225.55,0.00019452,3]
[351026732,1738299053191,-500.0,0.00019452,3]
[351026733,1738299053202,-2097.37,0.00019452,3]
[351026734,1738299053212,-500.0,0.00019452,3]
[351026735,1738299053223,-500.0,0.00019452,3]
[351026736,1738299053236,-500.0,0.00019452,3]
[351026737,1738299053246,-2260.68,0.00019452,3]
[351026738,1738299053257,-3635.39,0.00019452,3]
[351026739,1738299053268,-787.88,0.00019452,3]
[351026740,1738299053279,-898.28,0.00019452,3]
[351026741,1738299053290,-500.0,0.00019452,3]
[351026742,1738299053300,-500.0,0.00019452,3]
[351026743,1738299053310,-527.82,0.00019452,3]
[351026744,1738299053321,-934.36,0.00019452,3]
[351026745,1738299053331,-8259.21,0.00019452,3]
[351026746,1738299053342,-838.62,0.00019452,3]
[351026747,1738299053356,-500.0,0.00019452,3]
[351026748,1738299053367,-151.0,0.00019452,2]
[351026749,1738299053377,-1609.03,0.00019452,3]
[351026750,1738299053387,-500.0,0.00019452,3]
[351026751,1738299053400,-500.0,0.00019452,3]
[351026752,1738299053415,-2504.84,0.00019452,3]
[351026753,1738299053427,-500.0,0.00019452,3]
[351026754,1738299053438,-20639.39,0.00019452,3]
[351026755,1738299053450,-1306.2,0.00019452,3]
[351026756,1738299053462,-1660.79,0.00019452,3]
[351026757,1738299053472,-1276.36,0.00019452,3]
[351026758,1738299053484,-151.0,0.00019452,2]
[351026759,1738299053495,-500.0,0.00019452,3]
[351026760,1738299053507,-654.97,0.00019452,3]
[351026761,1738299053517,-500.0,0.00019452,3]
[351026762,1738299053528,-500.0,0.00019452,3]
[351026763,1738299053539,-1656.72,0.00019452,3]
[351026764,1738299053549,-3322.43,0.00019452,3]
[351026765,1738299053560,-1140.92,0.00019452,3]
[351026766,1738299053570,-3056.53,0.00019452,3]
[351026767,1738299053580,-1287.59,0.00019452,2]
[351026768,1738299053590,-606.93,0.00019452,3]
[351026769,1738299053601,-1841.23,0.00019452,3]
[351026770,1738299053611,-151.0,0.00019452,2]
[351026771,1738299053622,-729.7,0.00019452,3]
[351026772,1738299053632,-500.0,0.00019452,3]
[351026773,1738299053643,-2045.98,0.00019452,3]
[351026774,1738299053653,-2569.69,0.00019452,3]
[351026775,1738299053664,-986.56,0.00019452,3]
[351026776,1738299053674,-802.18,0.00019452,3]
[351026777,1738299053684,-2532.75,0.00019452,3]
[351026778,1738299053694,-500.0,0.00019452,3]
[351026779,1738299053705,-500.0,0.00019452,3]
[351026780,1738299053715,-800.52,0.00019452,3]
[351026781,1738299053726,-500.0,0.00019452,3]
[351026782,1738299053736,-500.0,0.00019452,3]
[351026783,1738299053747,-1319.43,0.00019452,3]
[351026784,1738299053758,-500.0,0.00019452,3]